Workbook

Sheet Sheet1
D9: Είδος Ελέγχου | F9: √ ή -
D10: Τακτικός
D11: Επανέλεγχος
D12: Έκτακτος
D13: RASFF
D14: Ημερομηνία προηγούμενου ελέγχου:
D15: Ημερομηνία & Ώρα Ελέγχου:
A19: ΕΝΤΥΠΟ ΕΛΕΓΧΟΥ ΕΓΚΑΤΑΣΤΑΣΕΩΝ ΠΑΡΑΓΩΓΗΣ ΜΕΤΑΠΟΙΗΜΕΝΩΝ ΑΛΙΕΥΜΑΤΩΝ (Αλιείας & Υδατοκαλλιέργειας)
A20: ΣΤΟΙΧΕΙΑ ΕΠΙΧΕΙΡΗΣΗΣ
A22: 1 | B22: Επωνυμία
A23: 2 | B23: Διεύθυνση
A24: 3 | B24: Τηλέφωνο / Fax
A25: 4 | B25: E-mail
A27: 5 | B27: Ονοματεπώνυμο
B28: Ιδιοκτήτη
A29: 6 | B29: ΑΦΜ / ΔΟΥ
A31: 7 | B31: Ονοματεπώνυμο
B32: Νόμιμου Εκπροσώπου
A33: 8 | B33: Αριθμός Γνωστοποίησης / Ημερομηνία Υποβολής
A35: 9 | B35: Αριθμός Έγκρισης
B37: ΔΡΑΣΤΗΡΙΟΤΗΤΑ – ΠΡΟΙΟΝΤΑ
B40: ΜΕΤΑΠΟΙΗΜΕΝΑ | F40: √
B41: - Αλίπαστα (υγρή / ξηρή αλάτιση)
B42: - Αποξηραμένα
B43: - Καπνιστά (θερμή / ψυχρή κάπνιση)
B44: - Θερμικώς επεξεργασμένα
B45: - Μαριναρισμένα
B46: - Ζωμοί, Πολτοί, Εκχυλίσματα
B47: =#N/A -> 
B48: Ανασυσκευασία Αλιευμάτων
B49: Πλοίο Εργοστάσιο
B50: Προϊόντα ΠΟΠ / Παραδοσιακά προϊόντα
B51: Δυναμικότητα – Όγκος Παραγόμενων Προϊόντων (Μηνιαία ή ετήσια παραγωγή)
B53: Εξαγωγική δραστηριότητα & όγκος % επί της ετήσιας παραγωγής
B55: Εποχική Λειτουργία
B56: Αριθμός Εργαζομένων
B58: ΚΕΦΑΛΑΙΟ Ι. ΣΥΣΤΗΜΑΤΑ ΚΑΙ ΔΙΑΔΙΚΑΣΙΕΣ
A59: A. | B59: ΣΥΣΤΗΜΑ ΑΥΤΟΕΛΕΓΧΟΥ | G59: ΝΑΙ (Συμμόρφωση) | H59: ΜΕΡΙΚΗ ΣΥΜΜΟΡΦΩΣΗ | I59: ΟΧΙ (μη συμμόρφωση) | J59: Δεν εφαρμόζεται | K59: Βαθμολογία
A60: 1 | B60: Εφαρμογή συστήματος HACCP / Αξιοποιηση δυνατοτητας ευελιξίας | G60: 0 | H60: 9 | I60: 18 | J60: 0
A61: 2 | B61: Διαγράμματα ροής ή περιγραφή ροής ανά κατηγορία προιόντων | G61: 0 | H61: 9 | I61: 18 | J61: 0
A62: 3 | B62: Έχουν καταγραφεί όλοι οι πιθανοί κίνδυνοι και έχουν εντοπιστεί ΣΕ ή ΚΣΕ για όλες τις κατηγορίες των παραγόμενων προϊόντων | G62: 0 | H62: 9 | I62: 18 | J62: 0
A63: 4 | B63: Υπάρχει τεκμηρίωση των κρίσιμων ορίων (βιβλιογραφική ή νομοθετική); | G63: 0 | H63: 6 | I63: 12 | J63: 0
A64: 5 | B64: Εφαρμόζονται αποτελεσματικές διαδικασίες παρακολούθησης στα ΚΣΕ ή των ΣΕ | G64: 0 | H64: 9 | I64: 18 | J64: 0
A65: 6 | B65: Έχουν καθοριστεί οι απαραίτητες διορθωτικές ενέργειες | G65: 0 | H65: 6 | I65: 12 | J65: 0
A66: 7 | B66: Τήρηση αρχείων | G66: 0 | H66: 6 | I66: 12 | J66: 0
A67: 8 | B67: Ανασκόπηση του Συστήματος HACCP | G67: 0 | H67: 6 | I67: 12 | J67: 0
A68: B. | B68: ΚΑΘΑΡΙΣΜΟΣ – ΑΠΟΛΥΜΑΝΣΗ | G68: ΝΑΙ (Συμμόρφωση) | H68: ΜΕΡΙΚΗ ΣΥΜΜΟΡΦΩΣΗ | I68: ΟΧΙ (μη συμμόρφωση) | J68: Δεν εφαρμόζεται | K68: Βαθμολογία
A69: 9 | B69: Εγκατεστημένη διαδικασία καθαρισμού – απολύμανσης με προσδιορισμένη συχνότητα που να ικανοποιεί τις απαιτήσεις της εγκατάστασης | G69: 0 | H69: 9 | I69: 18 | J69: 0
A70: 10 | B70: Έλεγχος αποτελεσματικότητας του καθαρισμού / απολύμανσης επιφανειών / εξοπλισμού | G70: 0 | H70: 6 | I70: 12 | J70: 0
A71: 11 | B71: Εξετάσεις από τις επιφάνειες για Listeria spp κατά τη διάρκεια της παραγωγικής διαδικασίας (όπου απαιτείται) | G71: 0 | H71: 9 | I71: 18 | J71: 0
A72: 12 | B72: Κατάλληλα υλικά καθαρισμού – απολύμανσης που χρησιμοποιούνται βάσει των οδηγιών χρήσης τους και αποθηκεύονται σε διακριτό χώρο | G72: 0 | H72: 6 | I72: 12 | J72: 0
A73: Γ. | B73: ΠΡΟΓΡΑΜΜΑ ΕΛΕΓΧΟΥ ΕΠΙΒΛΑΒΩΝ ΟΡΓΑΝΙΣΜΩΝ | G73: ΝΑΙ (Συμμόρφωση) | H73: ΜΕΡΙΚΗ ΣΥΜΜΟΡΦΩΣΗ | I73: ΟΧΙ (μη συμμόρφωση) | J73: Δεν εφαρμόζεται | K73: Βαθμολογία
A74: 13 | B74: Εφαρμογή τεκμηριωμένου προγράμματος ελέγχου επιβλαβών οργανισμών | G74: 0 | H74: 6 | I74: 12 | J74: 0
A75: 14 | B75: Χρήση προληπτικών μέτρων (σίτες, αεροκουρτίνες, άλλοι προστατευτικοί μηχανισμοί) | G75: 0 | H75: 6 | I75: 12 | J75: 0
A76: 15 | B76: Τοποθέτηση των παγίδων σύμφωνα με το σχετικό σχεδιάγραμμα / Ικανοποιητική κάλυψη | G76: 0 | H76: 6 | I76: 12 | J76: 0
A77: 16 | B77: Χρήση Εγκεκριμένων σκευασμάτων | G77: 0 | H77: 6 | I77: 12 | J77: 0
A78: 17 | B78: Διαθέσιμες εκθέσεις & καταγραφή ευρημάτων | G78: 0 | H78: 3 | I78: 6 | J78: 0
A79: Δ. | B79: ΕΚΠΑΙΔΕΥΣΗ ΠΡΟΣΩΠΙΚΟΥ | G79: ΝΑΙ (Συμμόρφωση) | H79: ΜΕΡΙΚΗ ΣΥΜΜΟΡΦΩΣΗ | I79: ΟΧΙ (μη συμμόρφωση) | J79: Δεν εφαρμόζεται | K79: Βαθμολογία
A80: 18 | B80: Υπάρχει μέριμνα και πρόγραμμα για την εκπαίδευση νέων υπαλλήλων ή όταν υφίστανται αλλαγές στην παραγωγική διαδικασία (νέο προϊόν, υιοθέτηση νέας τεχνολογίας) | G80: 0 | H80: 3 | I80: 6 | J80: 0
A81: 19 | B81: Περιεχόμενο και σχετική τεκμηρίωση (αρχές ατομικής υγιεινής, αρχές ορθών πρακτικών, εκτέλεση εργασίας βάσει της θέσης) | G81: 0 | H81: 3 | I81: 6 | J81: 0
A82: Ε. | B82: ΕΛΕΓΧΟΣ ΝΕΡΟΥ | G82: ΝΑΙ (Συμμόρφωση) | H82: ΜΕΡΙΚΗ ΣΥΜΜΟΡΦΩΣΗ | I82: ΟΧΙ (μη συμμόρφωση) | J82: Δεν εφαρμόζεται | K82: Βαθμολογία
B83: Προσδιορισμός προέλευσης πόσιμου νερού
B84: Δημόσιο Δίκτυο | E84: Ιδία πηγή (πχ γεώτρηση)
A85: 20 | B85: Διαθέσιμο σχεδιάγραμμα σημείων υδροδοσίας (παροχή ζεστού & κρύου) | G85: 0 | H85: 3 | I85: 6 | J85: 0
A86: 21 | B86: Ακολουθείται η συχνότητα μικροβιολογικών και φυσικοχημικών εξετάσεων | G86: 0 | H86: 6 | I86: 12 | J86: 0
B87: Άλλα μέτρα για την αποφυγή κινδύνων (χλωρίωση, φίλτρα, UV & μέτρα διήθησης )
B88: ΣΥΝΟΛΟ ΚΕΦΑΛΑΙΟΥ I | D88: =SUM(I60:I87) -> 264 | G88: =SUM(K60:K87) -> 0
B89: 0.7 | E89: 0.399 | I89: =IF(G88>=B90,"HIGH RISK",IF(G88<=E90,"LOW RISK","MEDIUM RISK")) -> LOW RISK
B90: =70%*D88 -> 184.8 | E90: =39.9%*D88 -> 105.336
B93: ΚΕΦΑΛΑΙΟ II- ΙΧΝΗΛΑΣΙΜΟΤΗΤΑ
G94: ΝΑΙ (Συμμόρφωση) | H94: ΜΕΡΙΚΗ ΣΥΜΜΟΡΦΩΣΗ | I94: ΟΧΙ (μη συμμόρφωση) | J94: Δεν εφαρμόζεται | K94: Βαθμολογία
A95: 22 | B95: Σύστημα συσχέτισης ποιοτικής & ποσοτικής των α΄& βοηθητικών υλών με τους προμηθευτές τους (όνομα, διεύθυνση) & ημερομηνία παραλαβής και των τελικών προιόντων με τους αποδεκτες τους(όνομα, διεύθυνση) & ημερομηνία αποστολής) | G95: 0 | H95: 9 | I95: 18 | J95: 0
A96: 23 | B96: Ειδικές απαιτήσεις για τα αλιευματα. Επιστημονική & εμπορική ονομασία, Περιοχή αλιευσης ή εκτροφής, Εάν είναι αποψυχθεν η Ημερομηνία ελάχιστης διατηρησιμότητας | G96: 0 | H96: 6 | I96: 12 | J96: 0
A97: 24 | B97: Ποσοτική συσχέτιση μεταξύ πρώτων υλών και τελικών προϊόντων | G97: 0 | H97: 6 | I97: 12 | J97: 0
A98: 25 | B98: Αναγνώριση παρτίδας τελικών προϊόντων | G98: 0 | H98: 6 | I98: 12 | J98: 0
A99: 26 | B99: Αποτελεσματική λειτουργία συστήματος ανάκλησης | G99: 0 | H99: 6 | I99: 12 | J99: 0
A100: 27 | B100: Τήρηση σχετικών αρχείων | G100: 0 | H100: 6 | I100: 12 | J100: 0
A101: 28 | B101: Σύστημα εσωτερικής ιχνηλασιμότητας (προαιρετικά) Συσχέτιση αριθμού παρτίδων των χρησιμοποιούμενων συστατικών για κάθε παρτίδα προϊόντος (σύνθετα) | G101: 0 | H101: 3 | I101: 6 | J101: 0
B102: ΣΥΝΟΛΟ ΚΕΦΑΛΑΙΟΥ II | D102: =SUM(I95:I101) -> 84 | G102: =SUM(K94:K101) -> 0
B103: 0.7 | E103: 0.399 | I103: =IF(G102>=B104,"HIGH RISK",IF(G102<=E104,"LOW RISK","MEDIUM RISK")) -> LOW RISK
B104: =70%*D102 -> 58.8 | E104: =39.9%*D102 -> 33.516
B107: ΚΕΦΑΛΑΙΟ III- ΕΞΕΤΑΣΕΙΣ / ΕΡΓΑΣΤΗΡΙΑΚΟΙ ΕΛΕΓΧΟΙ ΑΛΙΕΥΜΑΤΩΝ
G108: ΝΑΙ (Συμμόρφωση) | H108: ΜΕΡΙΚΗ ΣΥΜΜΟΡΦΩΣΗ | I108: ΟΧΙ (μη συμμόρφωση) | J108: Δεν εφαρμόζεται | K108: Βαθμολογία
A109: 29 | B109: Πλάνο εργαστηριακών αναλύσεων | G109: 0 | H109: 6 | I109: 12 | J109: 0
A110: 30 | B110: Εξέταση οργανοληπτικών χαρακτηριστικών | G110: 0 | H110: 6 | I110: 12 | J110: 0
A111: 31 | B111: Δείκτες Φρεσκότητας: TVB-N & TMA-N( αν απαιτείται) | G111: 0 | H111: 3 | I111: 6 | J111: 0
B112: α) Μικροβιολογικά Κριτήρια ασφάλειας | G112: ΝΑΙ (Συμμόρφωση) | H112: ΜΕΡΙΚΗ ΣΥΜΜΟΡΦΩΣΗ | I112: ΟΧΙ (μη συμμόρφωση) | J112: Δεν εφαρμόζεται | K112: Βαθμολογία
B113: Listeria monocytogenes
A114: 32 | B114: - στα έτοιμα για κατανάλωση προϊόντα αλιευμάτων (ικανά ή μη ικανά να την υποστηρίξουν) | G114: 0 | H114: 9 | I114: 18 | J114: 0
B115: Ισταμίνη
A116: 33 | B116: - σε ιχθύες που συνδέονται με υψηλές ποσότητες ιστιδίνης, κυρίως σκομβροειδή, αλλά όχι μόνο (π.χ. τόνος, παλαμίδα, κολιός, σκουμπρί, ρέγγα, σαρδέλλα, ξιφίας) | G116: 0 | H116: 9 | I116: 18 | J116: 0
A117: 34 | B117: - σε ενζυματικής ωρίμανσης μέσα σε άλμη, σε κοσερβοποιημένα και άλλα | G117: 0 | H117: 9 | I117: 18 | J117: 0
B118: Salmonella
A119: 35 | B119: - στα βρασμένα μαλακόστρακα & μαλάκια | G119: 0 | H119: 9 | I119: 18 | J119: 0
B120: β) Μικροβιολογικά Κριτήρια υγιεινής της παραγωγικής διαδικασίας | G120: ΝΑΙ (Συμμόρφωση) | H120: ΜΕΡΙΚΗ ΣΥΜΜΟΡΦΩΣΗ | I120: ΟΧΙ (μη συμμόρφωση) | J120: Δεν εφαρμόζεται | K120: Βαθμολογία
A121: 36 | B121: E. coli σε προϊόντα βρασμένων μαλακόστρακων & μαλακίων με κέλυφος και χωρίς κέλυφος | G121: 0 | H121: 6 | I121: 12 | J121: 0
A122: 37 | B122: Σταφυλόκοκκοι θετικοί στην πηκτάση σε προϊόντα βρασμένων μαλακόστρακων & μαλακίων με κέλυφος και χωρίς κέλυφος | G122: 0 | H122: 6 | I122: 12 | J122: 0
B123: Παράσιτα | G123: ΝΑΙ (Συμμόρφωση) | H123: ΜΕΡΙΚΗ ΣΥΜΜΟΡΦΩΣΗ | I123: ΟΧΙ (μη συμμόρφωση) | J123: Δεν εφαρμόζεται | K123: Βαθμολογία
A124: 38 | B124: Μακροσκοπική εξέταση για πλατυψαρα & φιλετα με ή χωρίς οπτικα μέσα μεγεθυνσης, χρήση λυχνίας | G124: 0 | H124: 6 | I124: 12 | J124: 0
A125: 39 | B125: Για τα τελικά προϊόντα ήπιας επεξεργασιας ή μεταποιησης (υγρή κάπνιση) εκπληρωνεται η απαιτηση για : -επεξεργασία καταψυξης α υλης( -20 C για 24h ή -35C για 15h) ή αν παρακαμπτεται η καταψυξη απαραιτητες πληροφορίες business to business | G125: 0 | H125: 6 | I125: 12 | J125: 0
B126: Κατάλοιπα – Προσμίξεις | G126: ΝΑΙ (Συμμόρφωση) | H126: ΜΕΡΙΚΗ ΣΥΜΜΟΡΦΩΣΗ | I126: ΟΧΙ (μη συμμόρφωση) | J126: Δεν εφαρμόζεται | K126: Βαθμολογία
A127: 40 | B127: Εκπληρώνεται η απαίτηση για τον ελεγχο σε Βαρέα Μέταλλα, Διοξίνες & PCB’s, Πολυκυκλικοί Αρωματικοί Υδρογονάνθρακες (βενζοπυρένιο σε καπνιστά προιόντα) | G127: 0 | H127: 6 | I127: 12 | J127: 0
B128: Δηλητηριώδη Προϊόντα Αλιείας | G128: ΝΑΙ (Συμμόρφωση) | H128: ΜΕΡΙΚΗ ΣΥΜΜΟΡΦΩΣΗ | I128: ΟΧΙ (μη συμμόρφωση) | J128: Δεν εφαρμόζεται | K128: Βαθμολογία
A129: 41 | B129: Μέτρα επιχείρησης για απαγορευμένα είδη & βιοτοξίνες | G129: 0 | H129: 6 | I129: 12 | J129: 0
A130: 42 | B130: Διαδικασία προσδιορισμού του χρόνου ζωής των τελικών προϊόντων(Self - life) | G130: 0 | H130: 6 | I130: 12 | J130: 0
B131: Εργαστηριακή υποστήριξη εντός ή εκτός επιχείρησης | G131: Χωρίς βαθμολογία. Για γενική πληροφόρηση του προφίλ της εγκατάστασης
B132: Οι εξετάσεις πραγματοποιούνται σε διαπιστευμένο εργαστήριο | G132: Χωρίς βαθμολογία. Για γενική πληροφόρηση του προφίλ της εγκατάστασης
B133: ΣΥΝΟΛΟ ΚΕΦΑΛΑΙΟΥ III | D133: =SUM(I108:I132) -> 186 | G133: =SUM(K108:K132) -> 0
B134: 0.7 | E134: 0.399 | I134: =IF(G133>=B135,"HIGH RISK",IF(G133<=E135,"LOW RISK","MEDIUM RISK")) -> LOW RISK
B135: =70%*D133 -> 130.2 | E135: =39.9%*D133 -> 74.214
B137: ΚΕΦΑΛΑΙΟ IV- ΕΛΕΓΧΟΣ ΓΡΑΜΜΗΣ ΠΑΡΑΓΩΓΗΣ – ΕΠΑΛΗΘΕΥΣΗ ΔΙΑΔΙΚΑΣΙΩΝ
A138: A. | B138: ΠΑΡΑΛΑΒΗ – ΑΠΟΘΗΚΕΥΣΗ ΠΡΩΤΩΝ ΥΛΩΝ | G138: ΝΑΙ (Συμμόρφωση) | H138: ΜΕΡΙΚΗ ΣΥΜΜΟΡΦΩΣΗ | I138: ΟΧΙ (μη συμμόρφωση) | J138: Δεν εφαρμόζεται | K138: Βαθμολογία
A139: 43 | B139: Έλεγχος καταλληλόλητας μέσων και συνθηκών μεταφοράς και θερμοκρασίας | G139: 0 | H139: 6 | I139: 12 | J139: 0
A140: 44 | B140: Κατάλληλο σύστημα για τον χειρισμό των αλιευμάτων κατά την εκφόρτωση & παραλαβή (αποφυγή συνθλίψεων & γρήγορη ψύξη χωρίς άσκοπες καθυστερήσεις) | G140: 0 | H140: 3 | I140: 6 | J140: 0
A141: 45 | B141: Εξασφαλίζεται ο έλεγχος οργανοληπτικών χαρακτηριστικών (εξακρίβωση κριτηρίων φρεσκότητας) & δεικτών φρεσκότητας (TVB-N & TMA-N) αν απαιτηθούν | G141: 0 | H141: 3 | I141: 6 | J141: 0
A142: 46 | B142: Έλεγχος συνοδευτικών εγγράφων και επιπλέον των απαιτητών πληροφοριών περι του ελέγχου του κινδύνου παρασίτων. | G142: 0 | H142: 6 | I142: 12 | J142: 0
A143: 47 | B143: Η αποθήκευση αλιευμάτων γίνεται σε θερμοκρασίες υπό ψύξη στους 0οC (παραπλήσια τήξης πάγου) | G143: 0 | H143: 3 | I143: 6 | J143: 0
A144: 48 | B144: Θερμοκρασία διατήρησης κατεψυγμένων αλιευμάτων στους -18 οC | G144: 0 | H144: 6 | I144: 12 | J144: 0
A145: 49 | B145: Θερμοκρασία διατήρησης κατεψυγμένων αλιευμάτων σε άλμη για Παρασκευή κονσερβών στους -9 οC | G145: 0 | H145: 6 | I145: 12 | J145: 0
A146: 50 | B146: Διατηρούμενα ζωντανά αλιεύματα σε κατάλληλες συνθήκες μη αρνητικές για τη βιωσιμότητάς τους & την ασφάλεια | G146: 0 | H146: 3 | I146: 6 | J146: 0
A147: 51 | B147: Τήρηση κανόνων ορθής αποθηκευτικής πρακτικής | G147: 0 | H147: 6 | I147: 12 | J147: 0
A148: 52 | B148: Προϊόντα που δεν πληρούν τις προδιαγραφές επισημαίνονται, αποθηκεύονται σε διακριτό χώρο και διαχειρίζονται ανάλογα | G148: 0 | H148: 3 | I148: 6 | J148: 0
A149: Β. | B149: ΠΑΡΑΓΩΓΙΚΗ ΔΙΑΔΙΚΑΣΙΑ | G149: ΝΑΙ (Συμμόρφωση) | H149: ΜΕΡΙΚΗ ΣΥΜΜΟΡΦΩΣΗ | I149: ΟΧΙ (μη συμμόρφωση) | J149: Δεν εφαρμόζεται | K149: Βαθμολογία
A150: 53 | B150: Τήρηση των προβλεπόμενων διαδικασιών επεξεργασίας (εκσπλαχνισμός, αποκεφαλισμός, αποδερμάτωση, φιλετοποίηση κτλ) | G150: 0 | H150: 6 | I150: 12 | J150: 0
A151: 54 | B151: Ταχεία ψύξη / κατάψυξη – Ορθή χρήση & λειτουργία | G151: 0 | H151: 6 | I151: 12 | J151: 0
A152: 55 | B152: Τήρηση των προβλεπόμενων διαδικασιών μεταποίησης (θερμική επεξεργασία, κάπνιση, αλάτιση, αφυδάτωση, μαρινάρισμα, αποξήρανση κτλ) | G152: 0 | H152: 9 | I152: 18 | J152: 0
A153: 56 | B153: Τήρηση των προβλεπόμενων βοηθητικών διεργασιών (παρασκευή άλμης, μαρινάδας, παρασκευή διαλυμάτων κτλ) | G153: 0 | H153: 6 | I153: 12 | J153: 0
A154: Γ. | B154: ΣΥΣΚΕΥΑΣΙΑ / ΑΝΑΣΥΣΚΕΥΑΣΙΑ | G154: ΝΑΙ (Συμμόρφωση) | H154: ΜΕΡΙΚΗ ΣΥΜΜΟΡΦΩΣΗ | I154: ΟΧΙ (μη συμμόρφωση) | J154: Δεν εφαρμόζεται | K154: Βαθμολογία
A155: 57 | B155: Τήρηση ενδεδειγμένων / κατάλληλων συνθηκών υγιεινής στο στάδιο της συσκευασίας | G155: 0 | H155: 6 | I155: 12 | J155: 0
A156: 58 | B156: Τηρούνται μετρα αποφυγής επιμολυνσης σε περίπτωση ανασυσκευασίας | G156: 0 | H156: 6 | I156: 12 | J156: 0
A157: 59 | B157: Εάν γίνεται χρήση ειδικών συστημάτων συσκευασίας ( π.χ vacum, modified technology κ.α) υφίσταται σύστημα ελέγχου των διαδικασιών | G157: 0 | H157: 6 | I157: 12 | J157: 0
A158: 60 | B158: Χρήση μεθόδων εξυγίανσης μετά τη συσκευασία | G158: 0 | H158: 6 | I158: 12 | J158: 0
A159: Δ. | B159: ΑΠΟΘΗΚΕΥΣΗ – ΔΙΑΝΟΜΗ ΠΡΟΪΟΝΤΩΝ | G159: ΝΑΙ (Συμμόρφωση) | H159: ΜΕΡΙΚΗ ΣΥΜΜΟΡΦΩΣΗ | I159: ΟΧΙ (μη συμμόρφωση) | J159: Δεν εφαρμόζεται | K159: Βαθμολογία
A160: 61 | B160: Επαρκείς θάλαμοι αποθήκευσης & κατάλληλες συνθήκες θερμοκρασίας και υγιεινής | G160: 0 | H160: 6 | I160: 12 | J160: 0
A161: 62 | B161: Τήρηση συστήματος «first in – first out» | G161: 0 | H161: 6 | I161: 12 | J161: 0
A162: 63 | B162: Διανομή με κατάλληλα μέσα | G162: 0 | H162: 6 | I162: 12 | J162: 0
A163: 64 | B163: Κατάλληλες συνθήκες θερμοκρασίας (με ανεκτή διακύμανση προς τα άνω τριών βαθμών) και υγιεινής κατά τη μεταφορά | G163: 0 | H163: 6 | I163: 12 | J163: 0
A164: 65 | B164: Προϊόντα που δεν πληρούν τις απαιτήσεις ασφαλείας, επισημαίνονται και αποθηκεύονται σε διακριτό χώρο και διαχειρίζονται ανάλογα | G164: 0 | H164: 6 | I164: 12 | J164: 0
B165: ΣΥΝΟΛΟ ΚΕΦΑΛΑΙΟΥ IV | D165: =SUM(I139:I164) -> 252 | G165: =SUM(K139:K164) -> 0
B166: 0.7 | E166: 0.399 | I166: =IF(G165>=B167,"HIGH RISK",IF(G165<=E167,"LOW RISK","MEDIUM RISK")) -> LOW RISK
B167: =70%*D165 -> 176.4 | E167: =39.9%*D165 -> 100.548
B169: ΚΕΦΑΛΑΙΟ V :ΓΕΝΙΚΕΣ ΑΠΑΙΤΗΣΕΙΣ ΥΓΙΕΙΝΗΣ
A170: Α. | B170: ΓΕΝΙΚΕΣ ΑΠΑΙΤΗΣΕΙΣ ΚΤΙΡΙΑΚΩΝ ΥΠΟΔΟΜΩΝ | G170: ΝΑΙ (Συμμόρφωση) | H170: ΜΕΡΙΚΗ ΣΥΜΜΟΡΦΩΣΗ | I170: ΟΧΙ (μη συμμόρφωση) | J170: Δεν εφαρμόζεται | K170: Βαθμολογία
B171: ΕΞΩΤΕΡΙΚΟ ΠΕΡΙΒΑΛΛΟΝ
A172: 66 | B172: Σαφής οριοθέτηση | G172: 0 | H172: 3 | I172: 6 | J172: 0
A173: 67 | B173: Γειτνίαση με πηγές μόλυνσης | G173: 0 | H173: 6 | I173: 12 | J173: 0
A174: 68 | B174: Ικανοποιητική διαμόρφωση, καθαριότητα, υγιεινή | G174: 0 | H174: 6 | I174: 12 | J174: 0
A175: 69 | B175: Επικαιροποιημένη κάτοψη (layout) της εγκατάστασης | G175: 0 | H175: 3 | I175: 6 | J175: 0
B176: ΣΧΕΔΙΑΣΜΟΣ – ΔΙΑΧΩΡΙΣΜΟΣ- ΕΠΑΡΚΕΙΑ ΧΩΡΩΝ
A177: 70 | B177: Επαρκές μέγεθος για τον συνήθη όγκο παραγωγής | G177: 0 | H177: 3 | I177: 6 | J177: 0
A178: 71 | B178: Χωρικός ή χρονικός διαχωρισμός στην είσοδο – έξοδο προσωπικού, Α’ υλών, βοηθητικών υλών, υλικών συσκευασίας και τελικών προϊόντων | G178: 0 | H178: 3 | I178: 6 | J178: 0
A179: 72 | B179: Αποτρέπεται ο κίνδυνος διασταυρούμενης μόλυνσης | G179: 0 | H179: 6 | I179: 12 | J179: 0
A180: Β. | B180: ΓΕΝΙΚΑ ΧΑΡΑΚΤΗΡΙΣΤΙΚΑ ΧΩΡΩΝ | G180: ΝΑΙ (Συμμόρφωση) | H180: ΜΕΡΙΚΗ ΣΥΜΜΟΡΦΩΣΗ | I180: ΟΧΙ (μη συμμόρφωση) | J180: Δεν εφαρμόζεται | K180: Βαθμολογία
A181: 73 | B181: Καταλληλότητα υλικών κατασκευής | G181: 0 | H181: 6 | I181: 12 | J181: 0
A182: 74 | B182: Δυνατότητα επαρκούς καθαρισμού – απολύμανσης | G182: 0 | H182: 6 | I182: 12 | J182: 0
A183: 75 | B183: Αποτροπή συσσώρευσης ρύπων & υδρατμών | G183: 0 | H183: 6 | I183: 12 | J183: 0
A184: 76 | B184: Πλέγματα προστασίας στα ανοίγματα | G184: 0 | H184: 3 | I184: 6 | J184: 0
A185: 77 | B185: Επαρκής φωτισμός, προστατευόμενα φωτιστικά μέσα | G185: 0 | H185: 3 | I185: 6 | J185: 0
A186: 78 | B186: Επαρκής αερισμός, αποφυγή μηχανικής ροής αέρα από μολυσμένους σε καθαρούς χώρους | G186: 0 | H186: 6 | I186: 12 | J186: 0
A187: 79 | B187: Υγειονομικά φρεάτια – αποτελεσματική απομάκρυνση λυμάτων | G187: 0 | H187: 6 | I187: 12 | J187: 0
A188: Γ | B188: ΕΞΟΠΛΙΣΜΟΣ | G188: ΝΑΙ (Συμμόρφωση) | H188: ΜΕΡΙΚΗ ΣΥΜΜΟΡΦΩΣΗ | I188: ΟΧΙ (μη συμμόρφωση) | J188: Δεν εφαρμόζεται | K188: Βαθμολογία
A189: 80 | B189: Καταλληλότητα υλικών | G189: 0 | H189: 6 | I189: 12 | J189: 0
A190: 81 | B190: Κατάλληλος σχεδιασμός τοποθέτηση | G190: 0 | H190: 6 | I190: 12 | J190: 0
A191: 82 | B191: Κατάλληλο σύστημα κλιματισμού (όταν απαιτείται ελεγχόμενη θερμοκρασία χώρου) σωστά διατηρημένο (φίλτρα) | G191: 0 | H191: 6 | I191: 12 | J191: 0
A192: 83 | B192: Ψυγεία & καταψύκτες με σύστημα αυτόματης καταγραφής θερμοκρασιών (σύστημα συναγερμού) | G192: 0 | H192: 6 | I192: 12 | J192: 0
A193: 84 | B193: Εξοπλισμός ταχείας κατάψυξης με σύστημα προγραμματισμού & παρακολούθησης του χρόνου – θερμοκρασίας παραμονής των υπό κατάψυξη προϊόντων | G193: 0 | H193: 6 | I193: 12 | J193: 0
A194: 85 | B194: Εξοπλισμός θερμικής επεξεργασίας, κάπνισης με σύστημα ελέγχου και καταγραφής των παραμέτρων (χρόνος – θερμοκρασία) της διαδικασίας | G194: 0 | H194: 6 | I194: 12 | J194: 0
A195: 86 | B195: Αυτόματες ή άλλες κατάλληλες συσκευές ελέγχου παραμέτρων | G195: 0 | H195: 6 | I195: 12 | J195: 0
A196: 87 | B196: Εξοπλισμός & εργαλεία κατάλληλα για την πρόληψη φυσικών κινδύνων (ανιχνευτές μετάλλων, κόσκινα κτλ) / Πολιτική ξένων σωμάτων (γυαλί, πλαστικά, μεταλλικά, food grade λίπανση κα) | G196: 0 | H196: 6 | I196: 12 | J196: 0
A197: Δ. | B197: ΣΥΝΤΗΡΗΣΗ ΕΞΟΠΛΙΣΜΟΥ/ΔΙΑΚΡΙΒΩΣΗ ΟΡΓΑΝΩΝ ΜΕΤΡΗΣΗΣ | G197: ΝΑΙ (Συμμόρφωση) | H197: ΜΕΡΙΚΗ ΣΥΜΜΟΡΦΩΣΗ | I197: ΟΧΙ (μη συμμόρφωση) | J197: Δεν εφαρμόζεται | K197: Βαθμολογία
A198: 88 | B198: Πλάνο προγραμματισμένης & προληπτικής συντήρησης εξοπλισμού | G198: 0 | H198: 6 | I198: 12 | J198: 0
A199: 89 | B199: Λήψη μέτρων κατά τη διάρκεια των εργασιών συντήρησης, ώστε να μην υφίστανται δυσμενείς επιπτώσεις στα προϊόντα | G199: 0 | H199: 6 | I199: 12 | J199: 0
A200: 90 | B200: Τεκμηρίωση συντήρησης εξοπλισμού | G200: 0 | H200: 3 | I200: 6 | J200: 0
A201: 91 | B201: Τεκμηριωμένη διακρίβωση οργάνων μέτρησης | G201: 0 | H201: 3 | I201: 6 | J201: 0
A202: Ε. | B202: ΧΩΡΟΙ ΥΓΙΕΙΝΗΣ & ΑΠΟΔΥΤΗΡΙΑ | G202: ΝΑΙ (Συμμόρφωση) | H202: ΜΕΡΙΚΗ ΣΥΜΜΟΡΦΩΣΗ | I202: ΟΧΙ (μη συμμόρφωση) | J202: Δεν εφαρμόζεται | K202: Βαθμολογία
A203: 92 | B203: Επαρκής αριθμός τουαλετών | G203: 0 | H203: 3 | I203: 6 | J203: 0
A204: 93 | B204: Επαρκής αερισμός, αποφυγή μηχανικής ροής αέρα από μολυσμένους σε καθαρούς χώρους | G204: 0 | H204: 3 | I204: 6 | J204: 0
A205: 94 | B205: Προθάλαμος τουαλετών με νιπτήρες που λειτουργούν κατά προτίμηση χωρίς τη χρήση | G205: 0 | H205: 3 | I205: 6 | J205: 0
A206: 95 | B206: Παροχή ζεστού – κρύου νερού | G206: 0 | H206: 3 | I206: 6 | J206: 0
A207: 96 | B207: Διαθέσιμα υλικά απολύμανσης και στεγνώματος χεριών | G207: 0 | H207: 3 | I207: 6 | J207: 0
A208: 97 | B208: Αποδυτήρια με επαρκή αριθμό κατάλληλων ερμαριών | G208: 0 | H208: 3 | I208: 6 | J208: 0
A209: Ζ. | B209: ΥΓΙΕΙΝΗ ΠΡΟΣΩΠΙΚΟΥ & ΠΡΑΚΤΙΚΕΣ ΧΕΙΡΙΣΜΟΥ | G209: ΝΑΙ (Συμμόρφωση) | H209: ΜΕΡΙΚΗ ΣΥΜΜΟΡΦΩΣΗ | I209: ΟΧΙ (μη συμμόρφωση) | J209: Δεν εφαρμόζεται | K209: Βαθμολογία
A210: 98 | B210: Βεβαιώσεις υγείας για όλο το προσωπικό που σχετίζεται με τον χώρο παραγωγής ή έρχεται σε επαφή με τα τρόφιμα | G210: 0 | H210: 6 | I210: 12 | J210: 0
A211: 99 | B211: Πολιτικη απαγορευσης χειρισμού τροφίμων από ασθενείς εργαζομενους με επιπτωση στα τροφιμα | G211: 0 | H211: 3 | I211: 6 | J211: 0
A212: 100 | B212: Προσθετα μετρα ελέγχου της υγείας του προσωπικού | G212: 0 | H212: 3 | I212: 6 | J212: 0
A213: 101 | B213: Καταλληλος & καθαρος ιματισμός, ικανοποιητική υγιεινή προσωπικού | G213: 0 | H213: 3 | I213: 6 | J213: 0
A214: 102 | B214: Τηρούνται ορθές πρακτικές για χειρισμοί του προσωπικού: (κάλυμμα κεφαλής, πλύση, απολύμανση χεριών με κατάλληλο τρόπο & συχνότητα, σύμφωνα με τις διαδικασίες) και υφίσταται ελέγχομενη μετακίνηση | G214: 0 | H214: 6 | I214: 12 | J214: 0
B215: ΣΥΝΟΛΟ ΚΕΦΑΛΑΙΟΥ V | D215: =SUM(I170:I214) -> 342 | G215: =SUM(K171:K214) -> 0
B216: 0.7 | E216: 0.399 | I216: =IF(G215>=B217,"HIGH RISK",IF(G215<=E217,"LOW RISK","MEDIUM RISK")) -> LOW RISK
B217: =70%*D215 -> 239.4 | E217: =39.9%*D215 -> 136.458
B219: ΚΕΦΑΛΑΙΟ VI : ΕΦΑΡΜΟΓΗ ΛΟΙΠΩΝ ΑΠΑΙΤΗΣΕΩΝ
A220: Α. | B220: ΔΙΑΧΕΙΡΙΣΗ ΖΩΙΚΩΝ ΥΠΟΠΡΟΪΟΝΤΩΝ ΚΑΙ ΑΠΟΡΡΙΜΜΑΤΩΝ | G220: ΝΑΙ (Συμμόρφωση) | H220: ΜΕΡΙΚΗ ΣΥΜΜΟΡΦΩΣΗ | I220: ΟΧΙ (μη συμμόρφωση) | J220: Δεν εφαρμόζεται | K220: Βαθμολογία
A221: 103 | B221: Ορθή διαχείριση και επισήμανση των ζωικών υποπροϊόντων. Κατάλληλες συνθήκες αποθήκευσης και διακριτός χώρος (κατάλληλοι περιέκτες με χρωματική σήμανση-μαύρο για υλικά κατηγορίας 1, κίτρινο για υλικά κατηγορίας 2 & πράσινο για υλικά κατηγορίας 3- θερμοκρασίες χώρου συλλογής) | G221: 0 | H221: 6 | I221: 12 | J221: 0
B222: κατηγορία 1 :υψηλός κίνδυνος (απαγορευμένες ουσίες)
B223: κατηγορία 2 :μεσαίος κίνδυνος (μικροβιολογικοί παράγοντες ή κατάλοιπα φαρμάκων)
B224: κατηγορία 3 :χαμηλός κίνδυνος (ελαττωματική συσκευασία)
A225: 104 | B225: Ιχνηλασιμότητα (Ημερήσιες καταγραφές παραγόμενων ΖΥΠ, μητρώο αποστολών και εμπορικά έγγραφα). Χρήση του πληροφοριακού συστήματος ΖΥΠ του ΥΠΑΑΤ ή τήρηση χειρόγραφου μητρώου αποστολών ΖΥΠ | G225: 0 | H225: 6 | I225: 12 | J225: 0
A226: 105 | B226: Τρόπος απομάκρυνσης από την εγκατάσταση: με καταχωρημένα οχήματα (ιδιόκτητα οχήματα ή οχήματα εταιρείας διαχείρισης ΖΥΠ). Σύμβαση με εταιρεία διαχείρισης ΖΥΠ / αποστολή ΖΥΠ σε εγκεκριμένη μονάδα διαχείρισης (τεκμηρίωση) | G226: 0 | H226: 6 | I226: 12 | J226: 0
A227: 106 | B227: Κατάλληλος χώρος αποθήκευσης απορριμάτων με σήμανση | G227: 0 | H227: 6 | I227: 12 | J227: 0
A228: 107 | B228: Απομάκρυνση απορριμμάτων από τους χώρους παραγωγής με κατάλληλη συχνότητα – αποφυγή επιμολύνσεων | G228: 0 | H228: 6 | I228: 12 | J228: 0
... 74 more rows
